bitfinex/quotes_SOLUSD_20241214
["timestamp","ask_amount","ask_price","bid_price","bid_amount"]
[1734190382537,23.776884,222.71,222.63,8.1125]
[1734190382737,20.0,222.68,222.63,8.1125]
[1734190383210,24.91150012,222.7,222.63,8.1125]
[1734190383909,4.91150012,222.7,222.63,8.1125]
[1734190392914,4.91150012,222.7,222.64,0.12549]
[1734190393237,4.91150012,222.76,222.64,0.12549]
[1734190394107,20.0,222.74,222.64,0.12549]
[1734190394308,20.0,222.74,222.64,8.70660875]
[1734190394513,4.91150012,222.76,222.64,8.70660875]
[1734190395009,4.91150012,222.76,222.66,0.12549]
[1734190395632,4.91150012,222.76,222.68,0.12549]
[1734190396013,11.94279309,222.81,222.68,0.12549]
[1734190396925,20.0,222.78,222.68,0.12549]
[1734190397319,20.0,222.79,222.68,0.12549]
[1734190398619,24.91150012,222.79,222.68,0.12549]
[1734190402946,24.91150012,222.79,222.7,0.12549]
[1734190406655,24.91150012,222.79,222.69,1.5196]
[1734190407642,24.91150012,222.79,222.7,0.12549]
[1734190409554,23.776884,222.78,222.69,1.5196]
[1734190409728,20.0,222.75,222.69,1.5196]
[1734190412722,20.0,222.77,222.69,1.5196]
[1734190412926,4.91150012,222.78,222.69,1.5196]
[1734190413252,20.0,222.77,222.69,1.5196]
[1734190413440,20.0,222.77,222.7,0.12549]
[1734190413928,4.91150012,222.78,222.7,0.12549]
[1734190415128,4.91150012,222.78,222.72,0.12549]
[1734190415333,7.03129297,222.87,222.74,0.12549]
[1734190415851,7.03129297,222.87,222.76,0.12549]
[1734190416352,25.44605578,222.89,222.76,0.12549]
[1734190416353,7.03129297,222.89,222.76,0.12549]
[1734190416655,23.776884,222.88,222.76,0.12549]
[1734190416844,20.0,222.85,222.76,0.12549]
[1734190417832,20.0,222.87,222.78,0.12549]
[1734190418447,4.42183346,222.9,222.78,0.12549]
[1734190418448,20.0,222.88,222.78,0.12549]
[1734190420237,23.776884,222.87,222.77,6.4264]
[1734190420544,20.0,222.84,222.77,6.4264]
[1734190420942,20.0,222.87,222.77,6.4264]
[1734190421160,20.0,222.88,222.77,6.4264]
[1734190421741,20.0,222.88,222.78,0.12549]
[1734190427044,20.0,222.87,222.78,0.12549]
[1734190427869,20.0,222.86,222.78,0.12549]
[1734190428546,20.0,222.89,222.78,0.12549]
[1734190430366,23.776884,222.88,222.78,0.12549]
[1734190430745,20.0,222.85,222.78,0.12549]
[1734190436669,20.0,222.85,222.77,6.4264]
[1734190438369,23.776884,222.84,222.77,6.4264]
[1734190438886,20.0,222.85,222.77,6.4264]
[1734190439093,20.0,222.89,222.77,6.4264]
[1734190439400,23.776884,222.88,222.77,6.4264]
[1734190439576,20.0,222.85,222.77,6.4264]
[1734190440769,20.0,222.81,222.77,6.4264]
[1734190444392,20.0,222.81,222.77,6.3953]
[1734190444795,20.0,222.81,222.75,1.659]
[1734190446511,23.776884,222.8,222.75,1.659]
[1734190446697,20.0,222.77,222.75,1.659]
[1734190447104,20.0,222.77,222.66,1.77069]
[1734190447408,20.0,222.77,222.67,6.6057]
[1734190447712,20.0,222.77,222.68,0.12549]
[1734190450902,23.776884,222.76,222.67,6.6057]
[1734190453809,23.776884,222.77,222.68,0.12549]
[1734190454009,20.0,222.74,222.68,0.12549]
[1734190455598,23.776884,222.8,222.68,0.12549]
[1734190455915,20.0,222.77,222.68,0.12549]
[1734190472225,23.776884,222.76,222.68,0.12549]
[1734190472527,20.0,222.73,222.67,6.6057]
[1734190474614,13.2707685,222.82,222.68,0.12549]
[1734190474801,20.0,222.74,222.68,0.12549]
[1734190475000,20.0,222.78,222.68,8.70660875]
[1734190475427,20.0,222.79,222.68,8.70660875]
[1734190476207,20.0,222.79,222.68,0.12549]
[1734190478328,20.0,222.75,222.68,0.12549]
[1734190482230,20.0,222.75,222.67,6.6057]
[1734190482231,20.0,222.71,222.67,6.6057]
[1734190482530,20.0,222.67,222.62,6.0255]
[1734190483330,23.776884,222.66,222.62,6.0255]
[1734190484045,20.0,222.66,222.56,7.6751]
[1734190490030,20.0,222.66,222.56,7.0821]
[1734190494637,20.0,222.62,222.56,7.0821]
[1734190497851,1.79172325,222.67,222.56,7.0821]
[1734190498024,20.0,222.63,222.56,7.0821]
[1734190501045,21.77597546,222.68,222.56,7.0821]
[1734190501344,23.776884,222.67,222.56,7.0821]
[1734190501553,20.0,222.64,222.56,7.0821]
[1734190502233,20.0,222.67,222.56,7.0821]
[1734190504139,22.76026833,222.67,222.56,7.0821]
[1734190505357,23.776884,222.7,222.57,0.12549]
[1734190505649,2.73805245,222.72,222.61,0.12549]
[1734190505835,12.75930741,222.78,222.61,0.25098]
[1734190506036,11.14270741,222.78,222.63,0.12549]
[1734190506258,0.12549,222.77,222.63,0.12549]
[1734190506436,4.11141444,222.78,222.63,0.12549]
[1734190507541,22.63618396,222.75,222.63,0.12549]
[1734190508766,20.0,222.71,222.63,0.12549]
[1734190510862,20.0,222.75,222.63,0.12549]
[1734190512661,20.0,222.75,222.64,6.0868]
[1734190514857,20.0,222.75,222.61,0.12549]
[1734190514858,4.11141444,222.78,222.67,0.12549]
[1734190515066,1.83961206,222.81,222.67,8.83209875]
[1734190515267,7.03129297,222.83,222.69,0.25098]
[1734190515451,7.03129297,222.83,222.71,0.12549]
[1734190515643,8.86266639,222.84,222.71,0.12549]
[1734190515951,1.83137342,222.84,222.71,0.12549]
[1734190516270,1.83137342,222.84,222.72,1.5645]
[1734190516447,4.11141444,222.85,222.72,1.5645]
[1734190516647,20.0,222.81,222.72,1.5645]
[1734190517064,23.776884,222.84,222.72,1.5645]
[1734190517956,2.67737881,222.83,222.72,1.5645]
[1734190518355,20.0,222.81,222.72,1.5645]
[1734190523252,20.0,222.77,222.72,1.5645]
[1734190524171,20.0,222.81,222.72,1.5645]
[1734190525757,8.64789297,222.88,222.73,0.12549]
[1734190526079,1.78121363,222.85,222.73,0.25098]
[1734190526388,2.71639948,222.86,222.77,1.5244]
[1734190526599,2.71639948,222.86,222.78,0.12549]
[1734190527089,4.11141444,222.91,222.79,6.3649]
[1734190527294,5.92779351,222.91,222.79,6.3649]
[1734190527596,4.11141444,222.91,222.8,0.12549]
[1734190527954,20.0,222.89,222.79,6.3649]
[1734190529074,20.0,222.89,222.8,0.12549]
[1734190529374,19.63279882,222.98,222.8,0.12549]
[1734190529375,4.11141444,222.96,222.82,0.25098]
[1734190529561,4.11141444,222.96,222.84,0.12549]
[1734190529755,0.12549,222.99,222.84,0.12549]
[1734190530386,13.39619297,223.0,222.84,0.12549]
[1734190530387,6.3649,223.0,222.84,0.12549]
[1734190530678,20.0,222.97,222.84,0.12549]
[1734190530979,2.63296382,222.95,222.84,0.12549]
[1734190531479,23.776884,222.94,222.83,6.3649]
[1734190531657,20.0,222.91,222.83,6.3649]
[1734190532658,20.0,222.87,222.83,6.3649]
[1734190533787,2.63296382,222.95,222.83,6.3649]
[1734190533963,20.0,222.97,222.84,0.25098]
[1734190534159,13.69222532,223.01,222.86,0.12549]
[1734190535666,20.0,222.98,222.86,0.12549]
[1734190536068,15.45516807,223.01,222.86,0.12549]
[1734190536263,23.776884,223.0,222.86,0.12549]
[1734190536467,2.75103175,222.98,222.86,0.12549]
[1734190536882,5.87435719,223.01,222.86,0.25098]
[1734190537073,5.87435719,223.01,222.88,0.25098]
[1734190537279,1.76294275,223.01,222.88,0.25098]
[1734190537477,0.5293704,223.04,222.88,0.25098]
[1734190538073,23.776884,223.03,222.88,0.25098]
[1734190539066,23.776884,223.0,222.88,0.12549]
[1734190539782,20.0,222.97,222.88,0.12549]
[1734190540668,20.0,222.97,222.87,6.1058]
[1734190541991,20.0,222.97,222.89,0.12549]
[1734190543572,10.21721444,223.06,222.91,1.67999]
[1734190543889,23.776884,223.03,222.91,1.67999]
[1734190544079,0.5293704,223.04,222.92,0.12549]
[1734190544390,0.5293704,223.04,222.94,0.12549]
[1734190545880,0.5293704,223.04,222.95,1.5545]
[1734190546086,0.5293704,223.04,222.96,0.12549]
[1734190546282,0.5293704,223.04,222.95,1.5545]
[1734190547665,20.0,223.01,222.95,1.5545]
[1734190552789,20.0,222.97,222.95,1.5545]
[1734190557500,20.0,222.98,222.95,1.5545]
[1734190562507,20.0,223.02,222.95,1.5545]
[1734190562886,20.0,222.98,222.95,1.5545]
[1734190564794,20.0,222.98,222.93,6.1058]
[1734190564795,20.0,222.94,222.87,7.9244]
[1734190570697,20.0,222.9,222.87,7.9244]
[1734190570896,20.0,222.94,222.87,7.9244]
[1734190571204,1.79756683,222.95,222.87,7.9244]
[1734190571205,20.0,222.9,222.87,7.9244]
[1734190571794,19.8467937,222.9,222.87,7.9244]
[1734190575595,19.8467937,222.9,222.75,7.9244]
[1734190576004,23.776884,222.89,222.75,7.9244]
[1734190576211,19.8467937,222.9,222.76,0.12549]
[1734190576621,20.0,222.86,222.76,0.12549]
[1734190577312,20.0,222.86,222.76,0.25098]
[1734190578312,20.0,222.86,222.76,0.12549]
[1734190579613,20.0,222.86,222.75,7.9244]
[1734190579817,20.0,222.86,222.76,0.12549]
[1734190581502,20.0,222.86,222.75,7.9244]
[1734190585096,20.0,222.86,222.76,0.12549]
[1734190585318,20.0,222.86,222.76,0.25098]
[1734190585920,23.776884,222.91,222.76,0.25098]
[1734190586126,25.69228922,222.92,222.76,0.25098]
[1734190587419,20.0,222.89,222.76,0.25098]
[1734190587813,20.0,222.89,222.76,0.12549]
[1734190588017,20.0,222.85,222.76,0.12549]
[1734190593147,20.0,222.85,222.76,0.25098]
[1734190593446,20.0,222.88,222.76,0.25098]
[1734190597550,20.0,222.84,222.76,0.12549]
[1734190597753,20.0,222.84,222.75,7.9244]
[1734190602064,20.0,222.8,222.75,7.9244]
[1734190607241,23.776884,222.84,222.75,7.9244]
[1734190608641,20.0,222.81,222.75,7.9244]
[1734190610990,20.0,222.87,222.75,7.9244]
[1734190611278,20.0,222.83,222.75,7.9244]
[1734190619091,20.0,222.83,222.76,0.12549]
[1734190619404,20.0,222.87,222.76,0.25098]
[1734190620782,20.0,222.86,222.76,0.25098]
[1734190620993,20.0,222.86,222.76,0.12549]
[1734190622686,20.0,222.86,222.76,0.25098]
[1734190626184,20.0,222.85,222.76,0.25098]
[1734190627679,20.0,222.85,222.76,0.12549]
[1734190627885,20.0,222.84,222.76,0.12549]
[1734190628407,20.0,222.84,222.75,7.9244]
[1734190628571,7.01826437,222.87,222.75,7.9244]
[1734190628572,20.0,222.8,222.75,7.9244]
[1734190630217,23.776884,222.83,222.66,7.7203]
[1734190630218,20.0,222.78,222.66,7.7203]
[1734190631197,20.0,222.79,222.66,7.7203]
[1734190631380,20.0,222.78,222.67,0.12549]
[1734190631696,20.0,222.79,222.67,0.12549]
[1734190632391,20.0,222.79,222.67,0.25098]
[1734190635481,20.0,222.8,222.68,10.18751875]
[1734190635688,20.0,222.8,222.69,0.12549]
[1734190637514,20.0,222.8,222.71,0.12549]
[1734190640617,20.0,222.81,222.73,0.12549]
[1734190640781,20.0,222.82,222.73,0.12549]
[1734190640986,7.01826437,222.87,222.75,0.12549]
[1734190641185,29.97467473,222.9,222.75,0.25098]
[1734190641186,7.01826437,222.89,222.75,0.25098]
[1734190641511,7.01826437,222.89,222.77,0.12549]
[1734190642695,20.0,222.86,222.77,0.12549]
[1734190643696,20.0,222.86,222.76,1.5266]
[1734190645101,20.0,222.86,222.77,0.12549]
[1734190647281,20.0,222.86,222.76,1.5266]
[1734190650791,20.0,222.86,222.77,0.12549]
[1734190653702,20.0,222.86,222.78,6.5887]
[1734190657511,20.0,222.85,222.78,6.5887]
[1734190659202,20.0,222.81,222.78,6.5887]
[1734190660202,20.0,222.81,222.76,1.5266]
[1734190660909,20.0,222.81,222.73,6.428]
[1734190661109,20.0,222.79,222.73,6.428]
[1734190661691,20.0,222.8,222.73,6.428]
[1734190664410,20.0,222.81,222.73,6.428]
[1734190664616,20.0,222.77,222.73,6.428]
[1734190677934,20.0,222.77,222.71,1.6184]
[1734190678427,20.0,222.73,222.68,6.5597]
[1734190682617,23.776884,222.68,222.63,6.5597]
[1734190682936,20.0,222.64,222.58,6.5597]
[1734190683640,20.0,222.64,222.55,1.5997]
[1734190683854,23.776884,222.63,222.55,1.5997]
[1734190684040,20.0,222.6,222.55,1.5997]
[1734190686942,20.0,222.64,222.55,1.5997]
[1734190688224,23.776884,222.63,222.55,1.5997]
[1734190688538,20.0,222.6,222.55,1.5997]
[1734190689768,20.0,222.64,222.55,1.5997]
[1734190690034,20.0,222.65,222.55,1.5997]
[1734190693050,20.0,222.67,222.55,1.5997]
[1734190693833,6.51268355,222.73,222.57,6.5597]
[1734190694150,0.12549,222.75,222.58,0.25098]
[1734190695243,0.12549,222.74,222.58,0.25098]
[1734190695463,20.0,222.72,222.58,0.25098]
[1734190695637,20.0,222.72,222.6,0.25098]
[1734190695838,20.0,222.74,222.6,0.25098]
[1734190696647,10.70321981,222.77,222.6,0.25098]
[1734190697031,6.24704461,222.79,222.63,1.5844]
[1734190697245,8.06192876,222.79,222.63,1.5844]
[1734190697544,8.06192876,222.79,222.64,0.25098]
[1734190697765,1.81488415,222.79,222.64,0.25098]
[1734190697940,20.0,222.78,222.64,0.25098]
[1734190698253,0.12549,222.8,222.64,0.25098]
[1734190698830,24.027864,222.8,222.64,0.25098]
[1734190699664,20.0,222.77,222.64,0.25098]
[1734190700036,20.0,222.77,222.63,1.5844]
[1734190700240,20.0,222.73,222.63,1.5844]
[1734190700770,20.0,222.73,222.64,0.25098]
[1734190701274,23.776884,222.77,222.64,0.25098]
[1734190701553,20.0,222.74,222.64,0.25098]
[1734190704881,5.08479207,222.81,222.66,0.12549]
[1734190705174,13.80032705,222.9,222.66,0.12549]
[1734190705175,1.78177343,222.88,222.71,0.12549]
[1734190705345,2.63822705,222.9,222.75,0.25098]
[1734190706155,1.6202,222.95,222.75,0.25098]
[1734190706360,0.12549,222.94,222.75,0.25098]
[1734190706559,9.67950507,222.95,222.76,0.12549]
[1734190706754,8.05930507,222.95,222.79,0.25098]
[1734190706945,6.2113713,222.95,222.79,0.25098]
[1734190707262,5.05237199,222.97,222.82,0.12549]
[1734190707450,0.12549,222.98,222.83,6.3249]
[1734190707875,14.8742253,223.01,222.83,6.3249]
[1734190708188,6.2113713,223.01,222.84,0.25098]
[1734190708660,7.00637264,223.04,222.9,0.12549]
[1734190708661,0.5293704,223.04,222.9,0.12549]
[1734190708851,0.5293704,223.04,222.9,0.25098]
[1734190709255,0.5293704,223.04,222.89,7.9093]
[1734190709943,24.3062544,223.04,222.89,7.9093]
[1734190710146,23.776884,223.0,222.89,7.9093]
[1734190710346,20.0,222.97,222.89,7.9093]
[1734190714175,20.0,222.93,222.89,7.9093]
[1734190714764,20.0,223.0,222.89,7.9093]
[1734190715065,20.0,222.96,222.89,7.9093]
[1734190715463,20.0,222.92,222.89,7.9093]
[1734190719358,20.0,222.92,222.84,6.2122]
[1734190719576,5.0,223.0,222.84,6.2122]
[1734190719577,20.0,222.88,222.84,6.2122]
[1734190723571,20.0,222.88,222.78,7.847]
[1734190724746,23.776884,222.87,222.78,7.847]
[1734190724958,20.0,222.84,222.78,7.847]
[1734190725269,20.0,222.8,222.78,7.847]
[1734190725464,20.0,222.8,222.78,1.6348]
[1734190728466,20.0,222.8,222.73,7.847]
[1734190737309,23.776884,222.79,222.73,1.6348]
[1734190737520,20.0,222.72,222.68,6.2677]
[1734190737797,20.0,222.72,222.67,1.6182]
[1734190738300,20.0,222.72,222.63,6.2677]
[1734190738673,20.0,222.68,222.63,6.2677]
[1734190739272,20.0,222.77,222.63,6.2677]
[1734190739503,0.12549,222.74,222.63,6.2677]
[1734190739693,23.902374,222.74,222.63,6.2677]
[1734190740305,20.0,222.71,222.63,6.2677]
[1734190740608,20.0,222.67,222.63,6.2677]
[1734190743097,0.12549,222.74,222.63,6.2677]
[1734190743098,20.0,222.72,222.63,6.2677]
[1734190743304,20.0,222.68,222.63,6.2677]
[1734190750594,23.776884,222.67,222.62,1.6182]
[1734190750823,20.0,222.64,222.62,1.6182]
[1734190751027,20.0,222.64,222.58,6.2677]
[1734190751603,13.312983,222.74,222.59,13.43847253]
[1734190751818,82.3,222.76,222.59,13.43847253]
[1734190752105,1.79817945,222.76,222.59,13.43847253]
[1734190752425,0.12549,222.76,222.59,13.43847253]
[1734190753127,20.0,222.73,222.59,13.43847253]
[1734190754827,20.0,222.73,222.59,0.12549]
[1734190754828,23.776884,222.72,222.59,0.12549]
[1734190755029,23.776884,222.72,222.58,6.2677]
[1734190755030,20.0,222.69,222.58,6.2677]
[1734190757035,20.0,222.69,222.59,0.12549]
[1734190758909,20.0,222.69,222.58,6.2677]
[1734190759240,20.0,222.65,222.58,6.2677]
[1734190761041,1.83652806,222.71,222.58,6.2677]
[1734190761212,23.902374,222.74,222.58,6.2677]
[1734190761409,0.12549,222.73,222.58,6.2677]
[1734190762634,20.0,222.71,222.58,6.2677]
[1734190763018,20.0,222.67,222.58,6.2677]
[1734190779457,20.0,222.63,222.58,6.2677]
[1734190781265,20.0,222.59,222.53,6.1452]
[1734190782867,23.776884,222.58,222.53,6.1452]
[1734190783202,20.0,222.55,222.53,6.1452]
[1734190783670,20.0,222.55,222.52,1.5497]
[1734190785369,20.0,222.61,222.52,1.5497]
[1734190785569,7.04265418,222.65,222.52,1.5497]
[1734190785764,0.12549,222.64,222.52,1.5497]
[1734190786101,8.8703044,222.66,222.52,1.5497]
[1734190786403,0.12549,222.64,222.52,1.5497]
[1734190786568,23.902374,222.64,222.52,1.5497]
[1734190786768,20.0,222.61,222.52,1.5497]
[1734190787065,20.0,222.57,222.52,1.5497]
[1734190787586,20.0,222.61,222.52,1.5497]
[1734190787770,23.776884,222.6,222.52,1.5497]
[1734190787969,20.0,222.57,222.52,1.5497]
[1734190788796,20.0,222.63,222.52,1.5497]
[1734190789879,23.776884,222.62,222.52,1.5497]
[1734190790087,20.0,222.59,222.52,1.5497]
[1734190796075,20.0,222.63,222.53,6.1452]
[1734190796306,20.0,222.66,222.53,6.1452]
[1734190796483,23.776884,222.65,222.53,6.1452]
[1734190796898,20.0,222.66,222.53,14.6767231]
[1734190797504,20.0,222.66,222.53,6.1452]
[1734190800298,20.0,222.66,222.54,0.12549]
[1734190800891,84.11188886,222.69,222.54,0.12549]
[1734190800892,21.81188886,222.69,222.54,0.12549]
[1734190801094,20.0,222.65,222.54,0.12549]
[1734190803008,20.0,222.65,222.53,6.1452]
[1734190804297,20.0,222.65,222.54,0.12549]
[1734190809297,20.0,222.65,222.56,0.12549]
[1734190809496,21.81188886,222.69,222.56,0.12549]
[1734190809807,20.0,222.69,222.56,0.12549]
[1734190810514,20.0,222.65,222.55,1.6245]
[1734190811611,7.04265418,222.71,222.57,6.4758]
[1734190811814,23.776884,222.71,222.58,1.6245]
[1734190812713,8.87453919,222.72,222.59,0.12549]
[1734190812912,23.776884,222.73,222.6,6.4758]
[1734190813116,0.12549,222.72,222.6,6.4758]
[1734190813309,23.902374,222.72,222.6,6.4758]
[1734190813514,35.99740017,222.72,222.6,6.4758]
[1734190813826,23.902374,222.7,222.6,6.4758]
[1734190814001,20.0,222.67,222.6,6.4758]
[1734190814197,20.0,222.63,222.6,6.4758]
[1734190814722,23.776884,222.66,222.6,6.4758]
[1734190814906,20.0,222.63,222.6,6.4758]
[1734190815708,20.0,222.67,222.6,6.4758]
[1734190815916,20.0,222.68,222.6,6.4758]
[1734190816221,12.09502617,222.71,222.6,6.4758]
[1734190816430,7.04265418,222.71,222.6,6.4758]
[1734190817225,23.776884,222.7,222.6,6.4758]
[1734190817414,20.0,222.67,222.6,6.4758]
[1734190823424,20.0,222.68,222.6,6.4758]
[1734190823728,8.85517415,222.74,222.6,6.4758]
[1734190823729,20.0,222.71,222.6,6.4758]
[1734190823911,20.0,222.72,222.6,6.4758]
[1734190824235,20.0,222.72,222.52,5.0]
[1734190824236,12.09502617,222.76,222.61,10.1754131]
[1734190824408,5.05237199,222.76,222.63,10.1754131]
[1734190824607,28.17061673,222.8,222.59,5.67369598]
[1734190824608,7.04265418,222.8,222.65,8.7825031]
[1734190824809,7.04265418,222.8,222.67,0.12549]
[1734190825229,0.12549,222.81,222.66,1.5184]
[1734190826031,20.0,222.79,222.66,1.5184]
[1734190826233,23.776884,222.81,222.66,1.5184]
[1734190827326,25.62663259,222.81,222.66,1.5184]
[1734190827535,20.0,222.78,222.66,1.5184]
[1734190829132,20.0,222.78,222.67,6.19269]
[1734190834736,20.0,222.78,222.69,0.12549]
[1734190834946,20.0,222.79,222.69,0.12549]
[1734190835920,20.0,222.79,222.68,1.6372]
[1734190840124,20.0,222.75,222.68,1.6372]
[1734190855247,20.0,222.71,222.68,1.6372]
[1734190856552,20.0,222.71,222.62,1.5496]
[1734190859941,20.0,222.67,222.62,1.5496]
[1734190876748,1.76861589,222.73,222.62,1.5496]
[1734190876948,12.09502617,222.75,222.63,6.0238]
[1734190877178,7.76942711,222.75,222.63,6.0238]
[1734190877464,0.12549,222.74,222.63,6.0238]
[1734190877671,5.17786199,222.74,222.63,6.0238]
[1734190877870,5.05237199,222.73,222.63,6.0238]
[1734190878076,20.0,222.69,222.63,6.0238]
[1734190885280,20.0,222.7,222.63,6.0238]
[1734190886786,20.0,222.74,222.63,6.0238]
[1734190887082,20.0,222.74,222.64,1.6664]
[1734190892377,20.0,222.7,222.64,1.6664]
[1734190895995,23.776884,222.73,222.53,6.0096]
[1734190895996,20.0,222.66,222.53,6.0096]
[1734190896889,20.0,222.65,222.53,6.0096]
[1734190897274,20.0,222.65,222.54,0.12549]
[1734190897973,20.0,222.66,222.54,0.12549]
[1734190898985,20.0,222.66,222.55,1.5396]
[1734190901970,20.0,222.66,222.56,0.12549]
[1734190902196,23.776884,222.69,222.57,6.2639]
[1734190902412,23.776884,222.7,222.57,6.2639]
[1734190902881,30.81953818,222.7,222.57,6.2639]
[1734190903070,23.776884,222.7,222.57,6.2639]
[1734190903267,20.0,222.67,222.57,6.2639]
[1734190903997,20.0,222.66,222.57,6.2639]
[1734190904186,20.0,222.67,222.57,6.2639]
[1734190904880,20.0,222.66,222.57,6.2639]
[1734190905772,20.0,222.67,222.57,6.2639]
[1734190911093,20.0,222.67,222.58,1.5396]
[1734190911297,20.0,222.7,222.59,0.12549]
[1734190911686,20.0,222.7,222.6,6.2639]
[1734190911995,20.0,222.71,222.6,6.2639]
[1734190912193,20.0,222.72,222.6,6.2639]
[1734190912778,20.0,222.72,222.63,0.12549]
[1734190912972,7.04265418,222.75,222.64,6.2639]
[1734190913179,7.04265418,222.78,222.65,0.12549]
[1734190913395,7.04265418,222.78,222.65,0.25098]
[1734190913593,11.81611328,222.79,222.65,0.25098]
[1734190913901,7.04265418,222.8,222.66,1.5396]
[1734190914197,7.04265418,222.8,222.67,0.12549]
[1734190914498,23.776884,222.79,222.67,0.12549]
[1734190914676,23.776884,222.8,222.67,0.12549]
[1734190915497,20.0,222.77,222.67,0.12549]
[1734190917496,20.0,222.78,222.7,1.5062]
[1734190917675,7.04265418,222.82,222.7,1.5062]
[1734190917879,7.04265418,222.82,222.71,0.12549]
[1734190918280,23.776884,222.83,222.71,0.12549]
[1734190919594,20.0,222.8,222.71,0.12549]
[1734190921377,20.0,222.8,222.7,1.5062]
[1734190921378,23.776884,222.79,222.7,1.5062]
[1734190921573,20.0,222.76,222.7,1.5062]
[1734190929324,23.776884,222.83,222.71,0.12549]
[1734190929498,4.7734591,222.84,222.71,0.12549]
[1734190930694,20.0,222.82,222.71,0.12549]
[1734190931000,20.0,222.8,222.73,0.12549]
[1734190931204,20.0,222.8,222.72,7.7854]
[1734190931411,0.12549,222.83,222.72,7.7854]
[1734190931704,24.7734591,222.82,222.72,7.7854]
[1734190932094,0.12549,222.81,222.72,7.7854]
[1734190932332,0.55782578,222.8,222.72,7.7854]
[1734190932494,20.0,222.76,222.72,7.7854]
[1734190932820,20.0,222.72,222.67,8.2285]
[1734190933499,23.776884,222.71,222.67,8.2285]
[1734190934007,23.776884,222.71,222.62,8.2285]
[1734190949319,20.0,222.68,222.62,8.2285]
[1734190957416,20.0,222.64,222.56,6.6613]
[1734190957615,20.0,222.64,222.56,8.2253]
[1734190968917,23.776884,222.67,222.56,8.2253]
[1734190969342,0.25098,222.72,222.56,8.2253]
[1734190970235,20.0,222.7,222.56,8.2253]
[1734190970636,20.0,222.66,222.56,8.2253]
[1734190970821,20.0,222.66,222.57,0.12549]
[1734190978833,23.776884,222.69,222.57,0.12549]
[1734190984456,23.776884,222.71,222.57,0.12549]
[1734190984657,11.81611328,222.73,222.57,0.12549]
[1734190984658,20.0,222.69,222.57,0.12549]
[1734190985247,23.776884,222.68,222.56,8.2253]
[1734190985553,23.776884,222.64,222.56,8.2253]
[1734190985936,20.0,222.61,222.56,8.2253]
[1734190996280,20.0,222.66,222.56,8.2253]
[1734190996639,20.0,222.62,222.56,8.2253]
[1734191008378,20.0,222.65,222.56,8.2253]
[1734191008562,20.0,222.67,222.56,8.2253]
[1734191008761,23.776884,222.66,222.56,8.2253]
[1734191009167,20.0,222.63,222.56,8.2253]
[1734191010056,23.776884,222.66,222.56,8.2253]
[1734191010577,23.776884,222.68,222.56,8.2253]
[1734191010787,20.0,222.65,222.56,8.2253]
[1734191014887,20.0,222.68,222.57,0.25098]
[1734191015096,7.04265418,222.71,222.57,0.25098]
[1734191015097,7.04265418,222.71,222.57,9.45630465]
[1734191015602,6.60814761,222.73,222.57,9.45630465]
[1734191016188,23.776884,222.72,222.57,9.45630465]
[1734191016368,6.60814761,222.73,222.57,9.45630465]
[1734191016574,20.0,222.7,222.59,0.25098]
[1734191016769,20.0,222.71,222.59,0.25098]